{"text_format":"1","workbook":"xlsx","n_sheets":14,"sheets":["Inicio","Menu","Instrucciones","Emprende","Idea","MATRIZ","EST.FO","EST.FA","EST.DO","EST.DA","ESTRATEGIAS","SELECCION","MATRIZ FINAL","DECISION"],"not_rendered":{"charts":0,"images":10,"macros":1,"external_links":0,"defined_names":21,"comments":12,"pivot_tables":0},"unopened":[],"bounds":{"document_bytes":16777216,"sheet_cells":100000,"rows_first":2000,"rows_last":500,"rows_between":2000,"halvings":0,"cell_chars":16384,"cell_head_chars":4096},"cells_cut":0,"cells_raw":0,"read":"whole","date_system":"1900"}

{"sheet":"Inicio","index":0,"n_rows":38,"n_cols":55,"rows_kept":38,"cut":false,"hidden":false,"merged":[[15,3,15,4],[26,14,32,14],[26,15,32,16],[35,2,35,5],[37,15,37,16],[37,7,37,8],[37,9,37,10],[37,11,37,12],[37,13,37,14],[14,3,14,4],[0,1,0,3],[3,2,3,17],[6,13,6,14],[10,2,10,5],[12,2,12,5]]}
[null,null,null,null,null,null,null,null,null,null,null,null,null,null,null,null,null,null,null,null,null,null,null,null,null,null,null,null,null,null,null,null,null,null,null,null,null,null,null,null,null,null,null,null,null,null,null,null,null,null,null,{"$f":"+MID(BA1,1,4)","v":"2013"},2013,{"$f":"+MONTH(D15)","v":1},{"$f":"+DATE(YEAR(D15),BB1,1)","v":"2013-01-01"}]
[null,null,null,null,null,null,null,null,null,null,null,null,null,null,null,null,null,null,null,null,null,null,null,null,null,null,null,null,null,null,null,null,null,null,null,null,null,null,null,null,null,null,null,null,null,null,null,null,null,null,null,{"$f":"+MID(BA2,1,4)","v":""},null,null,"2013-2013"]
[null,null,null,null,null,null,null,null,null,null,null,null,null,null,null,null,null,null,null,null,null,null,null,null,null,null,null,null,null,null,null,null,null,null,null,null,null,null,null,null,null,null,null,null,null,null,null,null,null,null,null,{"$f":"+MID(BA3,1,4)","v":""}]
[null,null,null,null,null,null,null,null,null,null,null,null,null,null,null,null,null,null,null,null,null,null,null,null,null,null,null,null,null,null,null,null,null,null,null,null,null,null,null,null,null,null,null,null,null,null,null,null,null,null,null,{"$f":"+MID(BA4,1,4)","v":""}]
[]
[]
[]
[]
[]
[]
[]
[]
[null,null,"GuiadelaCalidad"]
[]
[null,null,null,"2013-01-01"]
[null,null,null,"2013-12-31"]
[]
[]
[]
[]
[]
[]
[]
[]
[]
[]
[]
[]
[]
[]
[]
[]
[]
[]
[]
[]
[]
[null,null,null,null,null,null,null,null,"CONTACTO","CONTACTO",null,null,null,"INSTRUCCIONES","INSTRUCCIONES"]

{"sheet":"Menu","index":1,"n_rows":41,"n_cols":59,"rows_kept":41,"cut":false,"hidden":false,"merged":[[16,3,16,4],[26,14,32,14],[26,15,32,16],[38,2,38,5],[40,15,40,16],[40,7,40,8],[40,9,40,10],[40,11,40,12],[40,13,40,14],[15,3,15,4],[0,1,0,3],[3,2,3,17],[5,13,5,15],[10,2,10,5],[12,2,12,5]]}
[null,null,null,null,null,null,null,null,null,null,null,null,null,null,null,null,null,null,null,null,null,null,null,null,null,null,null,null,null,null,null,null,null,null,null,null,null,null,null,null,null,null,null,null,null,null,null,null,null,null,null,{"$f":"+MID(BA1,1,4)","v":"2013"},2013,{"$f":"+MONTH(D16)","v":1},{"$f":"+DATE(YEAR(D16),BB1,1)","v":"2013-01-01"},null,"Todos",null,"Todas"]
[null,null,null,null,null,null,null,null,null,null,null,null,null,null,null,null,null,null,null,null,null,null,null,null,null,null,null,null,null,null,null,null,null,null,null,null,null,null,null,null,null,null,null,null,null,null,null,null,null,null,null,{"$f":"+MID(BA2,1,4)","v":""},null,null,"2013-2013",null,{"$f":"+BA1","v":2013},null,"Financiera"]
[null,null,null,null,null,null,null,null,null,null,null,null,null,null,null,null,null,null,null,null,null,null,null,null,null,null,null,null,null,null,null,null,null,null,null,null,null,null,null,null,null,null,null,null,null,null,null,null,null,null,null,{"$f":"+MID(BA3,1,4)","v":""},null,null,null,null,{"$f":"+BA2","v":0},null,"Clientes"]
[null,null,null,null,null,null,null,null,null,null,null,null,null,null,null,null,null,null,null,null,null,null,null,null,null,null,null,null,null,null,null,null,null,null,null,null,null,null,null,null,null,null,null,null,null,null,null,null,null,null,null,{"$f":"+MID(BA4,1,4)","v":""},null,null,null,null,{"$f":"+BA3","v":0},null,"Proc.Internos"]
[null,null,null,null,null,null,null,null,null,null,null,null,null,null,null,null,null,null,null,null,null,null,null,null,null,null,null,null,null,null,null,null,null,null,null,null,null,null,null,null,null,null,null,null,null,null,null,null,null,null,null,null,null,null,null,null,{"$f":"+BA4","v":0},null,"Apr y Conoc."]
[]
[]
[]
[]
[]
[]
[]
[null,null,{"$f":"+Inicio!C13","v":"GuiadelaCalidad"}]
[]
[]
[null,null,null,{"$f":"+Inicio!D15","v":"2013-01-01"}]
[null,null,null,{"$f":"+Inicio!D16","v":"2013-12-31"}]
[]
[]
[]
[]
[]
[]
[]
[]
[]
[]
[]
[]
[]
[]
[]
[]
[]
[]
[]
[]
[]
[]
[]
[null,null,null,null,null,null,null,null,"CONTACTO","CONTACTO",null,null,null,"INSTRUCCIONES","INSTRUCCIONES"]

{"sheet":"Instrucciones","index":2,"n_rows":24,"n_cols":9,"rows_kept":24,"cut":false,"hidden":false,"merged":[[22,8,24,10],[23,4,24,7],[15,2,15,10],[20,2,24,3],[18,4,18,5],[17,8,17,10],[21,4,21,5],[17,2,19,3],[10,2,10,10],[19,8,19,10],[19,4,19,7],[1,2,1,10],[3,2,3,10],[4,2,4,10],[13,2,13,10],[12,2,12,10],[9,2,9,10],[8,2,8,10],[11,2,11,10],[18,8,18,9],[17,4,17,6]]}
[]
[]
[]
[]
[null,null,"INSTRUCCIONES PARA LA ELABORACIÓN DE LA MATRIZ DAFO"]
[]
[null,null,"NOTA: Sólo debes registrar datos en las celdas blancas."]
[null,null,"1- En todas las hojas verás el nombre de tu empresa y período de evaluación, ingresados en menú principal"]
[null,null,"2. En la Hoja \"Matriz\" debes escribir de manera concisa las fortalezas, debilidades, amenazas y oportunidades de tu organización, en las columnas correspondientes\n\nEs decir:\n(a) No te enrolles:\n                     - Pocos puntos.\n                     - Frases breves y contundentes.\n(b) Demuestra tus capacidades:\n                     - Visión estratégica: Pon tus frases por orden de importancia. \n                     - Capacidad de Síntesis: Contundentes y substanciales.\n                     - Conocimiento de la realidad:no incluyas elementos irrelevantes.\n(c) Muy práctico\n                     - No olvides ningún punto importante... pero siempre debe haber más puntos positivos que negativos. (no es obligatorio poner cinco puntos en cada sección)"]
[null,null,"3. En las hojas EST.FO, EST.FA, EST.DO, EST.DA, se harán las combinaciones más adecuadas para luego formular las estrategias más recomendables"]
[null,null,"4. En la hoja \"Estrategias\" se observará el resumen de todas las estrategias planteadas en las combinaciones. En esta hoja no debes hacer nada, sólo analizar"]
[null,null,"5. En la hoja de calculo DECISIÓN debes explicar en forma breve las estrategias escogidas"]
[null,null,"6.  Para saltar de línea dentro de una celda (equivalente a punto y aparte), teclear después del punto: ALT + INTRO"]
[null,null,"7. Las mejores estrategias seleccionadas se volcarán en Area Plan Operativo"]
[]
[null,null,"TEORÍA DAFO"]
[]
[null,null,"DEBILIDAD",null,"AMENAZA",null,null,null,"OPORTUNIDAD"]
[null,null,null,null,"PROTECCIÓN",null,null,null,"POSICIÓN"]
[null,null,null,null,"Cuando, ante una amenaza estemos débiles, deberemos protegernos. Ello no implica una posición totalmente pasiva, cualquier amenaza debe fortalecernos en el futuro y deberemos reaccionar ante ellas de forma cada vez más rápida y eficaz. \nPueden existir dos tipos de amenazas: unas previsibles y otras no previsibles.\nAnte amenazas previsibles deberemos prepararnos y afrontarlas adecuadamente ya que, si no somos flexibles en este aspecto, estamos orientados al fracaso.\nAnte amenazas no previsibles, nuestra actitud cambia radicalmente, el factor sorpresa y el tiempo juegan en nuestra contra, pondrán a prueba nuestra capacidad de reacción.",null,null,null,"Este tipo de medida implica prepararnos el 'camino' para estar en una situación de fortaleza en un corto o medio plazo. \nCuando surge una oportunidad en el mercado, podemos decir que se inicia una frenética carrera para conseguir obtener el máximo beneficio de la misma. \nNuestra firmeza y convicción en prepararnos será determinante para obtener los frutos deseados de esa oportunidad.\nHay que tener en cuenta que luchar por una oportunidad no implica necesariamente tener éxito en el aprovechamiento de la misma."]
[null,null,"FORTALEZA "]
[null,null,null,null,"RESPUESTA",null,null,null,"REACCIÓN"]
[null,null,null,null,null,null,null,null,"Consiste en tomar acciones rápidas y contundentes con el objetivo de explotar, tanto la oportunidad que se nos brinda, como nuestra fortaleza ante la misma. Puede ser que la situación no se repita, y por consiguiente, sería un error no beneficiarnos de ello."]
[null,null,null,null,"Cuando ante amenazas estemos en una posición fuerte, deberemos responder enérgicamente.\nSeguramente, éstas habrán sido previstas por nosotros, pero, si no es así, si no las podemos prever, deberemos actuar rápida y contundentemente, con el fin de reforzar nuestra posición. Si la amenaza proviene de nuestra competencia, la respuesta tendrá que ser también disuasoria."]

{"sheet":"Emprende","index":3,"n_rows":57,"n_cols":30,"rows_kept":57,"cut":false,"hidden":false,"merged":[[31,4,40,4],[31,8,40,8],[31,9,40,9],[31,10,40,10],[10,4,30,4],[4,2,4,4],[8,3,9,3],[8,4,9,4],[8,5,9,5],[6,2,7,13],[45,4,49,4],[45,8,49,8],[45,9,49,9],[45,10,49,10],[41,4,44,4],[41,8,44,8],[41,9,44,9],[53,4,56,4],[53,8,56,8],[53,9,56,9],[53,10,56,10],[50,4,52,4],[50,8,52,8],[50,9,52,9],[50,10,52,10],[53,11,56,11],[8,6,9,6],[10,11,30,11],[31,11,40,11],[41,11,44,11],[45,11,49,11],[50,11,52,11],[8,9,9,9],[8,10,9,10],[8,8,9,8],[41,10,44,10],[10,8,30,8],[10,9,30,9],[10,10,30,10]]}
[null,null,null,null,null,null,null,null,null,null,null,null,null,null,null,null,null,null,null,null,null,null,null,null,null,null,null,null,{"$f":"+E11","v":"1. CAPACIDADES PERSONALES"},{"$f":"+Idea!E11","v":"1. INNOVACIÓN"}]
[null,null,null,null,null,null,null,null,null,null,null,null,null,null,null,null,null,null,null,null,null,null,null,null,null,null,null,null,{"$f":"+E32","v":"2. CAPACIDADES DE GESTIÓN"},{"$f":"+Idea!E16","v":"2. TECNOLOGÍA"}]
[null,null,null,null,null,null,null,null,null,null,null,null,null,null,null,null,null,null,null,null,null,null,null,null,null,null,null,null,{"$f":"+E42","v":"3. CAPACIDADES TÉCNICAS"},{"$f":"+Idea!E21","v":"3. MERCADO"}]
[null,null,null,null,null,null,null,null,null,null,null,null,null,null,null,null,null,null,null,null,null,null,null,null,null,null,null,null,{"$f":"+E46","v":"4. CAPACIDADES COMERCIALES"},{"$f":"+Idea!E35","v":"4. SOCIOLOGÍA, MEDIOAMBIENTE Y DEMOGRAFÍA"}]
[null,null,"EMPRESA",null,null,{"$f":"+Menu!C13","v":"GuiadelaCalidad"},null,null,null,null,null,null,null,{"$f":"+YEAR(Menu!D16) & \" - \" & YEAR(Menu!D17)","v":"2013 - 2013"},null,null,null,null,null,null,null,null,null,null,null,null,null,null,{"$f":"+E51","v":"5. CAPACIDADES FINANCIERAS"},{"$f":"+Idea!E38","v":"5. ECONÓMICO Y FINANCIERO"}]
[null,null,null,null,null,null,null,null,null,null,null,null,null,null,null,null,null,null,null,null,null,null,null,null,null,null,null,null,{"$f":"+E54","v":"6. AMBIENTE EMPRENDEDOR"},{"$f":"+Idea!E43","v":"6. LEGAL Y ADMINISTRATIVO"}]
[null,null,"ANÁLISIS DEL EMPRENDEDOR  (Análisis Interno)"]
[]
[null,null,null,"Nº IT.","CAPACIDADES","ITEMS","Puntuación","F ","PUNT. TOTAL","PUNT. MAX","%","F / D"]
[null,null,null,null,null,null,null,"D",null,null,null,"N"]
[1,null,null,1,"1. CAPACIDADES PERSONALES","Capacidad para asumir riesgos",null,{"$f":"IF(G11=\"\",\"\",IF(G11>=4,\"F\",\"D\"))","v":""},{"$f":"+SUM(G11:G31)","v":0},{"$f":"+D31*6","v":126},{"$f":"+I11/J11","v":0},{"$f":"IF(K11>=60%,\"F\",IF(K11<=40%,\"D\",\"N\"))","v":"D"},null,{"$f":"+G11","v":0}]
[1,null,null,2,null,"Capacidad de adaptación",null,{"$f":"IF(G12=\"\",\"\",IF(G12>=4,\"F\",\"D\"))","v":""},null,null,null,null,null,{"$f":"+G12","v":0}]
[1,null,null,3,null,"Capacidad para establecer prioridades",null,"",null,null,null,null,null,0]
[1,null,null,4,null,"Capacidad de trabajo en equipo y cooperacion",null,"",null,null,null,null,null,0]
[1,null,null,5,null,"Capacidad de aprendizaje",null,"",null,null,null,null,null,0]
[1,null,null,6,null,"Integridad",null,"",null,null,null,null,null,0]
[1,null,null,7,null,"Afición al trabajo",null,"",null,null,null,null,null,0]
[1,null,null,8,null,"Visión de futuro",null,"",null,null,null,null,null,0]
[1,null,null,9,null,"Autodisciplina/autocontrol",null,"",null,null,null,null,null,0]
[1,null,null,10,null,"Imaginación",null,"",null,null,null,null,null,0]
[1,null,null,11,null,"Autoestima",null,"",null,null,null,null,null,0]
[1,null,null,12,null,"Espíritu innovador",null,"",null,null,null,null,null,0]
[1,null,null,13,null,"Flexibilidad",null,"",null,null,null,null,null,0]
[1,null,null,14,null,"Responsabilidad",null,"",null,null,null,null,null,0]
[1,null,null,15,null,"Tenacidad/perseverancia",null,"",null,null,null,null,null,0]
[1,null,null,16,null,"Espiritu de superacion",null,"",null,null,null,null,null,0]
[1,null,null,17,null,"Sentido critico",null,"",null,null,null,null,null,0]
[1,null,null,18,null,"Optimismo",null,"",null,null,null,null,null,0]
[1,null,null,19,null,"Perfeccionismo",null,"",null,null,null,null,null,0]
[1,null,null,20,null,"Solidaridad/sociabilidad",null,"",null,null,null,null,null,0]
[1,null,null,21,null,"Iniciativa",null,"",null,null,null,null,null,0]
[2,null,null,1,"2. CAPACIDADES DE GESTIÓN","Capacidad de liderazgo",null,"",{"$f":"+SUM(G32:G41)","v":0},{"$f":"+D41*6","v":60},{"$f":"+I32/J32","v":0},{"$f":"IF(K32>=60%,\"F\",IF(K32<=40%,\"D\",\"N\"))","v":"D"},null,0]
[2,null,null,2,null,"Capacidad organizativa",null,"",null,null,null,null,null,0]
[2,null,null,3,null,"Capacidad para tomar decisiones",null,"",null,null,null,null,null,0]
[2,null,null,4,null,"Capacidad de resolución de conflictos",null,"",null,null,null,null,null,0]
[2,null,null,5,null,"Capacidad de negociación",null,"",null,null,null,null,null,0]
[2,null,null,6,null,"Grado de implicación en el negocio",null,"",null,null,null,null,null,0]
[2,null,null,7,null,"Conocimientos de administración",null,"",null,null,null,null,null,0]
[2,null,null,8,null,"Conocimiento de idiomas",null,"",null,null,null,null,null,0]
[2,null,null,9,null,"Conocimiento de aplicaciones informáticas relacionadas con la idea",null,"",null,null,null,null,null,0]
[2,null,null,10,null,"Visión de futuro",null,"",null,null,null,null,null,0]
[3,null,null,1,"3. CAPACIDADES TÉCNICAS","Experiencia en el negocio",null,"",{"$f":"+SUM(G42:G45)","v":0},{"$f":"+D45*6","v":24},{"$f":"+I42/J42","v":0},{"$f":"IF(K42>=60%,\"F\",IF(K42<=40%,\"D\",\"N\"))","v":"D"},null,0]
[3,null,null,2,null,"Formación academica sobre el negocio",null,"",null,null,null,null,null,0]
[3,null,null,3,null,"Conocimientos de la tecnología a utilizar",null,"",null,null,null,null,null,0]
[3,null,null,4,null,"Conocimiento del sector",null,"",null,null,null,null,null,0]
[4,null,null,1,"4. CAPACIDADES COMERCIALES","Conocimientos técnicos comerciales en general",null,"",{"$f":"+SUM(G46:G50)","v":0},{"$f":"+D50*6","v":30},{"$f":"+I46/J46","v":0},{"$f":"IF(K46>=60%,\"F\",IF(K46<=40%,\"D\",\"N\"))","v":"D"},null,0]
[4,null,null,2,null,"Conocimientos de la red ventas del sector.",null,"",null,null,null,null,null,0]
[4,null,null,3,null,"Conocimiento de las practicas publicitarias del sector",null,"",null,null,null,null,null,0]
[4,null,null,4,null,"Facilidad de comunicación",null,"",null,null,null,null,null,0]
[4,null,null,5,null,"Facilidad de persuasión/asertividad",null,"",null,null,null,null,null,0]
[5,null,null,1,"5. CAPACIDADES FINANCIERAS","Medios propios",null,"",{"$f":"+SUM(G51:G53)","v":0},{"$f":"+D53*6","v":18},{"$f":"+I51/J51","v":0},{"$f":"IF(COUNTIF(H51:H53,\"F\")>=1,\"F\",IF(K51<=40%,\"D\",\"N\"))","v":"D"},null,0]
[5,null,null,2,null,"Capacidad para buscar socios capitalistas",null,"",null,null,null,null,null,0]
[5,null,null,3,null,"Capacidad para buscar financiación de entidades financieras",null,"",null,null,null,null,null,0]
[6,null,null,1,"6. AMBIENTE EMPRENDEDOR","Experiencia propia",null,"",{"$f":"+SUM(G54:G57)","v":0},{"$f":"+D57*6","v":24},{"$f":"+I54/J54","v":0},{"$f":"IF(K54>=60%,\"F\",IF(K54<=40%,\"D\",\"N\"))","v":"D"},null,0]
[6,null,null,2,null,"Experiencia familiar",null,"",null,null,null,null,null,0]
[6,null,null,3,null,"Apoyo familiar",null,"",null,null,null,null,null,0]
[6,null,null,4,null,"Experiencia de amigos",null,"",null,null,null,null,null,0]

{"sheet":"Idea","index":4,"n_rows":46,"n_cols":14,"rows_kept":46,"cut":false,"hidden":false,"merged":[[4,7,4,10],[4,2,4,4],[8,3,9,3],[8,4,9,4],[8,5,9,5],[8,8,9,8],[8,9,9,9],[6,2,7,13],[15,4,19,4],[15,8,19,8],[15,9,19,9],[15,10,19,10],[10,4,14,4],[10,8,14,8],[10,9,14,9],[10,10,14,10],[20,4,33,4],[20,8,33,8],[20,9,33,9],[34,4,36,4],[34,8,36,8],[34,9,36,9],[37,4,41,4],[42,4,45,4],[37,8,41,8],[37,9,41,9],[42,8,45,8],[42,9,45,9],[37,11,41,11],[42,11,45,11],[8,6,9,6],[10,11,14,11],[15,11,19,11],[20,11,33,11],[34,11,36,11],[20,10,33,10],[34,10,36,10],[8,10,9,10],[37,10,41,10],[42,10,45,10]]}
[]
[]
[]
[]
[null,null,"EMPRESA",null,null,{"$f":"+Menu!C13","v":"GuiadelaCalidad"},null,null,null,null,null,null,null,{"$f":"+YEAR(Menu!D16) & \" - \" & YEAR(Menu!D17)","v":"2013 - 2013"}]
[]
[null,null,"ANÁLISIS DE LA IDEA (Análisis Externo)"]
[]
[null,null,null,"Nº IT.","CAPACIDADES","ITEMS","Puntuación","O","PUNT. TOTAL","PUNT. MAX","%","O / A"]
[null,null,null,null,null,null,null,"A",null,null,null,"N"]
[1,null,null,1,"1. INNOVACIÓN","Nuestra idea presenta factores innovadores",null,{"$f":"IF(G11=\"\",\"\",IF(G11>3,\"O\",\"A\"))","v":""},{"$f":"+SUM(G11:G15)","v":0},{"$f":"+D15*6","v":30},{"$f":"I11/J11","v":0},{"$f":"IF(K11>=60%,\"O\",IF(K11<=40%,\"A\",\"N\"))","v":"A"},null,{"$f":"+G11","v":0}]
[1,null,null,2,null,"Interés y afición por la actividad",null,{"$f":"IF(G12=\"\",\"\",IF(G12>3,\"O\",\"A\"))","v":""},null,null,null,null,null,{"$f":"+G12","v":0}]
[1,null,null,3,null,"Tenemos algún tipo de ventaja competitiva",null,"",null,null,null,null,null,0]
[1,null,null,4,null,"No es facil de copiar la idea de negocio",null,"",null,null,null,null,null,0]
[1,null,null,5,null,"No existen o no es probable que puedan aparecer productos/servicios sustitutivos ",null,"",null,null,null,null,null,0]
[2,null,null,1,"2. TECNOLOGÍA","Existe una tecnología para desarrollar la idea de negocio",null,"",{"$f":"+SUM(G16:G20)","v":0},{"$f":"+D20*6","v":30},{"$f":"+I16/J16","v":0},{"$f":"IF(K16>=60%,\"O\",IF(K16<=40%,\"A\",\"N\"))","v":"A"},null,0]
[2,null,null,2,null,"La tecnología esta a nuestro alcance financieramente",null,"",null,null,null,null,null,0]
[2,null,null,3,null,"La tecnología esta a nuestro alcance jurídicamente",null,"",null,null,null,null,null,0]
[2,null,null,4,null,"No se preveen cambios tecnológicos importantes en el sector a corto y medio plazo",null,"",null,null,null,null,null,0]
[2,null,null,5,null,"Caso de existir, será facil adaptarse a los mismos",null,"",null,null,null,null,null,0]
[3,null,null,1,"3. MERCADO","Se han identificado a los competidores",null,"",{"$f":"+SUM(G21:G34)","v":0},{"$f":"+D34*6","v":84},{"$f":"+I21/J21","v":0},{"$f":"IF(K21>=60%,\"O\",IF(K21<=40%,\"A\",\"N\"))","v":"A"},null,0]
[3,null,null,2,null,"Se  conocen las principales carcterísticas de la competencia",null,"",null,null,null,null,null,0]
[3,null,null,3,null,"No es probable que entren nuevos competidores en el mercado",null,"",null,null,null,null,null,0]
[3,null,null,4,null,"No existen problemas de marca o tamaño que dificulte la entrada de nueestra empresa en el mercado",null,"",null,null,null,null,null,0]
[3,null,null,5,null,"No existen guerras de precios en el sector",null,"",null,null,null,null,null,0]
[3,null,null,6,null,"Las empresas del sector están obteniendo beneficios",null,"",null,null,null,null,null,0]
[3,null,null,7,null,"Se han identificado a los clientes potenciales",null,"",null,null,null,null,null,0]
[3,null,null,8,null,"El poder negociador de los clientes es bajo",null,"",null,null,null,null,null,0]
[3,null,null,9,null,"Se conocen las costumbres y hábitos consumidores de los clientes potenciales",null,"",null,null,null,null,null,0]
[3,null,null,10,null,"Se han identificado a los proveedores de circulante e inmovilizado",null,"",null,null,null,null,null,0]
[3,null,null,11,null,"El poder negociador de proveedores es bajo",null,"",null,null,null,null,null,0]
[3,null,null,12,null,"El momento actual es idóneo para entrar en el mercado",null,"",null,null,null,null,null,0]
[3,null,null,13,null,"No es previsible que haya cambios importantes en el mercado en los próximos años",null,"",null,null,null,null,null,0]
[3,null,null,14,null,"En caso contrario, se espera que en tres años la demanda del producto o servicio hay crecido",null,"",null,null,null,null,null,0]
[4,null,null,1,"4. SOCIOLOGÍA, MEDIOAMBIENTE Y DEMOGRAFÍA","El entorno social (moda, cultura, religión, sociologia) afecta positivamente a la idea de negocio",null,"",{"$f":"+SUM(G35:G37)","v":0},{"$f":"+D37*6","v":18},{"$f":"+I35/J35","v":0},{"$f":"IF(K35>=60%,\"O\",IF(K35<=40%,\"A\",\"N\"))","v":"A"},null,0]
[4,null,null,2,null,"La idea de negocio es respetuosa con el medio ambiente",null,"",null,null,null,null,null,0]
[4,null,null,3,null,"La tendencia demográfica afecta favorablemente a la idea de negocio",null,"",null,null,null,null,null,0]
[5,null,null,1,"5. ECONÓMICO Y FINANCIERO","La inversión necesaria es asumible",null,"",{"$f":"+SUM(G38:G42)","v":0},{"$f":"+D42*6","v":30},{"$f":"+I38/J38","v":0},{"$f":"IF(K38>=60%,\"O\",IF(K38<=40%,\"A\",\"N\"))","v":"A"},null,0]
[5,null,null,2,null,"Se espera obtener ingresos en el corto plazo",null,"",null,null,null,null,null,0]
[5,null,null,3,null,"La situación económica en los proximos años afecta positivamente a la idea de negocio ",null,"",null,null,null,null,null,0]
[5,null,null,4,null,"El impacto de la globalización será positivo sobre la idea de negocio",null,"",null,null,null,null,null,0]
[5,null,null,5,null,"Es un buen momento para obtener financiación ajena",null,"",null,null,null,null,null,0]
[6,null,null,1,"6. LEGAL Y ADMINISTRATIVO","No exiten ni se preveen restricciones legales o administrativas sobre el consumo del bien/servicio",null,"",{"$f":"+SUM(G43:G46)","v":0},{"$f":"+D46*6","v":24},{"$f":"+I43/J43","v":0},{"$f":"IF(K43>=60%,\"O\",IF(K43<=40%,\"A\",\"N\"))","v":"A"},null,0]
[6,null,null,2,null,"No existen ni se preveen restricciones en materia publicitaria que afecten al producto/servicio",null,"",null,null,null,null,null,0]
[6,null,null,3,null,"Hay en la actualidad o se preveen programas administrativos que incentiven la actividad",null,"",null,null,null,null,null,0]
[6,null,null,4,null,"No existen barreras legales o administrativas para desarrollar la idea",null,"",null,null,null,null,null,0]

{"sheet":"MATRIZ","index":5,"n_rows":27,"n_cols":14,"rows_kept":27,"cut":false,"hidden":false,"merged":[[9,10,9,12],[10,10,10,12],[11,10,11,12],[12,10,12,12],[13,5,13,7],[9,5,9,7],[10,5,10,7],[11,5,11,7],[12,5,12,7],[19,4,20,4],[19,9,20,9],[15,3,15,13],[24,9,24,10],[13,10,13,12],[19,8,20,8],[2,3,2,13],[4,5,4,9],[8,5,8,7],[4,2,4,4],[7,5,7,7],[7,10,7,12],[6,9,6,14],[7,13,7,14],[6,3,6,8],[8,10,8,12]]}
[]
[]
[]
[]
[null,null,"EMPRESA",null,null,{"$f":"+Menu!C13","v":"GuiadelaCalidad"},null,null,null,null,null,null,null,{"$f":"+YEAR(Menu!D16) & \" - \" & YEAR(Menu!D17)","v":"2013 - 2013"}]
[]
[null,null,null,"ANALISIS INTERNO",null,null,null,null,null,"ANALISIS EXTERNO"]
[null,null,null,"Nº","FORTALEZAS","DEBILIDADES",null,null,"FACTORES INTERNOS NEUTROS","OPORTUNIDADES","AMENAZAS",null,null,"FACTORES EXTERNOS NEUTROS"]
[null,null,null,1,{"$f":"IF(Emprende!$L$11=\"F\",MID(Emprende!$E$11,4,LEN(Emprende!$E$11)-2),\"\")","v":""},{"$f":"IF(Emprende!$L$11=\"D\",MID(Emprende!$E$11,4,LEN(Emprende!$E$11)-2),\"\")","v":"CAPACIDADES PERSONALES"},null,null,{"$f":"IF(Emprende!$L$11=\"N\",MID(Emprende!$E$11,4,LEN(Emprende!$E$11)-2),\"\")","v":""},{"$f":"IF(Idea!$L$11=\"O\",MID(Idea!$E$11,4,LEN(Idea!$E$11)-2),\"\")","v":""},{"$f":"IF(Idea!$L$11=\"A\",MID(Idea!$E$11,4,LEN(Idea!$E$11)-2),\"\")","v":"INNOVACIÓN"},null,null,{"$f":"IF(Idea!$L$11=\"N\",MID(Idea!$E$11,4,LEN(Idea!$E$11)-2),\"\")","v":""}]
[null,null,null,{"$f":"1+D9","v":2},{"$f":"IF(Emprende!$L$32=\"F\",MID(Emprende!$E$32,4,LEN(Emprende!$E$32)-2),\"\")","v":""},{"$f":"IF(Emprende!$L$32=\"D\",MID(Emprende!$E$32,4,LEN(Emprende!$E$32)-2),\"\")","v":"CAPACIDADES DE GESTIÓN"},null,null,{"$f":"IF(Emprende!$L$32=\"N\",MID(Emprende!$E$32,4,LEN(Emprende!$E$32)-2),\"\")","v":""},{"$f":"IF(Idea!$L$16=\"O\",MID(Idea!$E$16,4,LEN(Idea!$E$16)-2),\"\")","v":""},{"$f":"IF(Idea!$L$16=\"A\",MID(Idea!$E$16,4,LEN(Idea!$E$16)-2),\"\")","v":"TECNOLOGÍA"},null,null,{"$f":"IF(Idea!$L$16=\"N\",MID(Idea!$E$16,4,LEN(Idea!$E$16)-2),\"\")","v":""}]
[null,null,null,{"$f":"1+D10","v":3},{"$f":"IF(Emprende!$L$42=\"F\",MID(Emprende!$E$42,4,LEN(Emprende!$E$42)-2),\"\")","v":""},{"$f":"IF(Emprende!$L$42=\"D\",MID(Emprende!$E$42,4,LEN(Emprende!$E$42)-2),\"\")","v":"CAPACIDADES TÉCNICAS"},null,null,{"$f":"IF(Emprende!$L$42=\"N\",MID(Emprende!$E$42,4,LEN(Emprende!$E$42)-2),\"\")","v":""},{"$f":"IF(Idea!$L$21=\"O\",MID(Idea!$E$21,4,LEN(Idea!$E$21)-2),\"\")","v":""},{"$f":"IF(Idea!$L$21=\"A\",MID(Idea!$E$21,4,LEN(Idea!$E$21)-2),\"\")","v":"MERCADO"},null,null,{"$f":"IF(Idea!$L$21=\"N\",MID(Idea!$E$21,4,LEN(Idea!$E$21)-2),\"\")","v":""}]
[null,null,null,{"$f":"1+D11","v":4},{"$f":"IF(Emprende!$L$46=\"F\",MID(Emprende!$E$46,4,LEN(Emprende!$E$46)-2),\"\")","v":""},{"$f":"IF(Emprende!$L$46=\"D\",MID(Emprende!$E$46,4,LEN(Emprende!$E$46)-2),\"\")","v":"CAPACIDADES COMERCIALES"},null,null,{"$f":"IF(Emprende!$L$46=\"N\",MID(Emprende!$E$46,4,LEN(Emprende!$E$46)-2),\"\")","v":""},{"$f":"IF(Idea!$L$35=\"O\",MID(Idea!$E$35,4,LEN(Idea!$E$35)-2),\"\")","v":""},{"$f":"IF(Idea!$L$35=\"A\",MID(Idea!$E$35,4,LEN(Idea!$E$35)-2),\"\")","v":"SOCIOLOGÍA, MEDIOAMBIENTE Y DEMOGRAFÍA"},null,null,{"$f":"IF(Idea!$L$35=\"N\",MID(Idea!$E$35,4,LEN(Idea!$E$35)-2),\"\")","v":""}]
[null,null,null,{"$f":"1+D12","v":5},{"$f":"IF(Emprende!$L$51=\"F\",MID(Emprende!$E$51,4,LEN(Emprende!$E$51)-2),\"\")","v":""},{"$f":"IF(Emprende!$L$51=\"D\",MID(Emprende!$E$51,4,LEN(Emprende!$E$51)-2),\"\")","v":"CAPACIDADES FINANCIERAS"},null,null,{"$f":"IF(Emprende!$L$51=\"N\",MID(Emprende!$E$51,4,LEN(Emprende!$E$51)-2),\"\")","v":""},{"$f":"IF(Idea!$L$38=\"O\",MID(Idea!$E$38,4,LEN(Idea!$E$38)-2),\"\")","v":""},{"$f":"IF(Idea!$L$38=\"A\",MID(Idea!$E$38,4,LEN(Idea!$E$38)-2),\"\")","v":"ECONÓMICO Y FINANCIERO"},null,null,{"$f":"IF(Idea!$L$38=\"N\",MID(Idea!$E$38,4,LEN(Idea!$E$38)-2),\"\")","v":""}]
[null,null,null,{"$f":"1+D13","v":6},{"$f":"IF(Emprende!$L$54=\"F\",MID(Emprende!$E$54,4,LEN(Emprende!$E$54)-2),\"\")","v":""},{"$f":"IF(Emprende!$L$54=\"D\",MID(Emprende!$E$54,4,LEN(Emprende!$E$54)-2),\"\")","v":"AMBIENTE EMPRENDEDOR"},null,null,{"$f":"IF(Emprende!$L$54=\"N\",MID(Emprende!$E$54,4,LEN(Emprende!$E$54)-2),\"\")","v":""},{"$f":"IF(Idea!$L$43=\"O\",MID(Idea!$E$43,4,LEN(Idea!$E$43)-2),\"\")","v":""},{"$f":"IF(Idea!$L$43=\"A\",MID(Idea!$E$43,4,LEN(Idea!$E$43)-2),\"\")","v":"LEGAL Y ADMINISTRATIVO"},null,null,{"$f":"IF(Idea!$L$43=\"N\",MID(Idea!$E$43,4,LEN(Idea!$E$43)-2),\"\")","v":""}]
[]
[]
[]
[]
[]
[null,null,null,null,"ANÁLISIS INTERNO (EMPRENDEDOR)","PUNT.","PUNT.",null,null,"ANÁLISIS EXTERNO (IDEA)",null,"PUNT.","PUNT."]
[null,null,null,null,null,"TOTAL","MÁX.","%",null,null,null,"TOTAL","MÁX.","%"]
[null,null,null,null,{"$f":"+Emprende!$E$11","v":"1. CAPACIDADES PERSONALES"},{"$f":"+Emprende!I11","v":0},{"$f":"+Emprende!J11","v":126},{"$f":"+Emprende!K11","v":0},null,{"$f":"+Idea!$E$11","v":"1. INNOVACIÓN"},null,{"$f":"+Idea!I11","v":0},{"$f":"+Idea!J11","v":30},{"$f":"+Idea!K11","v":0}]
[null,null,null,null,{"$f":"+Emprende!$E$32","v":"2. CAPACIDADES DE GESTIÓN"},{"$f":"+Emprende!I32","v":0},{"$f":"+Emprende!J32","v":60},{"$f":"+Emprende!K32","v":0},null,{"$f":"+Idea!$E$16","v":"2. TECNOLOGÍA"},null,{"$f":"+Idea!I16","v":0},{"$f":"+Idea!J16","v":30},{"$f":"+Idea!K16","v":0}]
[null,null,null,null,{"$f":"+Emprende!$E$42","v":"3. CAPACIDADES TÉCNICAS"},{"$f":"+Emprende!I42","v":0},{"$f":"+Emprende!J42","v":24},{"$f":"+Emprende!K42","v":0},null,{"$f":"+Idea!$E$21","v":"3. MERCADO"},null,{"$f":"+Idea!I21","v":0},{"$f":"+Idea!J21","v":84},{"$f":"+Idea!K21","v":0}]
[null,null,null,null,{"$f":"+Emprende!$E$46","v":"4. CAPACIDADES COMERCIALES"},{"$f":"+Emprende!I46","v":0},{"$f":"+Emprende!J46","v":30},{"$f":"+Emprende!K46","v":0},null,{"$f":"+Idea!$E$35","v":"4. SOCIOLOGÍA, MEDIOAMBIENTE Y DEMOGRAFÍA"},null,{"$f":"+Idea!I35","v":0},{"$f":"+Idea!J35","v":18},{"$f":"+Idea!K35","v":0}]
[null,null,null,null,{"$f":"+Emprende!$E$51","v":"5. CAPACIDADES FINANCIERAS"},{"$f":"+Emprende!I51","v":0},{"$f":"+Emprende!J51","v":18},{"$f":"+Emprende!K51","v":0},null,{"$f":"+Idea!$E$38","v":"5. ECONÓMICO Y FINANCIERO"},null,{"$f":"+Idea!I38","v":0},{"$f":"+Idea!J38","v":30},{"$f":"+Idea!K38","v":0}]
[null,null,null,null,{"$f":"+Emprende!$E$54","v":"6. AMBIENTE EMPRENDEDOR"},{"$f":"+Emprende!I54","v":0},{"$f":"+Emprende!J54","v":24},{"$f":"+Emprende!K54","v":0},null,{"$f":"+Idea!$E$43","v":"6. LEGAL Y ADMINISTRATIVO"},null,{"$f":"+Idea!I43","v":0},{"$f":"+Idea!J43","v":24},{"$f":"+Idea!K43","v":0}]

{"sheet":"EST.FO","index":6,"n_rows":16,"n_cols":9,"rows_kept":16,"cut":false,"hidden":false,"merged":[[6,2,7,9],[4,2,4,3],[2,3,2,7],[4,5,4,7]]}
[]
[]
[]
[]
[null,null,"EMPRESA",null,{"$f":"+Menu!C13","v":"GuiadelaCalidad"},null,null,null,{"$f":"+YEAR(Menu!D16) & \" - \" & YEAR(Menu!D17)","v":"2013 - 2013"}]
[]
[null,null,"GENERACIÓN DE ESTRATEGIAS FO"]
[]
[]
[null,null,null,"NUMERO","FORTALEZAS","OPORTUNIDADES","NEUTROS-DEB/AMENZ.","COMBINACION","ESTRATEGIA"]
[null,null,null,1,{"$f":"MATRIZ!E9","v":""},{"$f":"MATRIZ!J9","v":""},{"$f":"+IF(E11=\"\",IF(MATRIZ!F9=\"\",MATRIZ!I9,MATRIZ!F9), \"\") & \" - \" & IF(F11=\"\",IF(MATRIZ!K9=\"\",MATRIZ!N9,MATRIZ!K9),\"\")","v":"CAPACIDADES PERSONALES - INNOVACIÓN"}]
[null,null,null,{"$f":"1+D11","v":2},{"$f":"MATRIZ!E10","v":""},{"$f":"MATRIZ!J10","v":""},{"$f":"+IF(E12=\"\",IF(MATRIZ!F10=\"\",MATRIZ!I10,MATRIZ!F10), \"\") & \" - \" & IF(F12=\"\",IF(MATRIZ!K10=\"\",MATRIZ!N10,MATRIZ!K10),\"\")","v":"CAPACIDADES DE GESTIÓN - TECNOLOGÍA"}]
[null,null,null,{"$f":"1+D12","v":3},{"$f":"MATRIZ!E11","v":""},{"$f":"MATRIZ!J11","v":""},{"$f":"+IF(E13=\"\",IF(MATRIZ!F11=\"\",MATRIZ!I11,MATRIZ!F11), \"\") & \" - \" & IF(F13=\"\",IF(MATRIZ!K11=\"\",MATRIZ!N11,MATRIZ!K11),\"\")","v":"CAPACIDADES TÉCNICAS - MERCADO"}]
[null,null,null,{"$f":"1+D13","v":4},{"$f":"MATRIZ!E12","v":""},{"$f":"MATRIZ!J12","v":""},{"$f":"+IF(E14=\"\",IF(MATRIZ!F12=\"\",MATRIZ!I12,MATRIZ!F12), \"\") & \" - \" & IF(F14=\"\",IF(MATRIZ!K12=\"\",MATRIZ!N12,MATRIZ!K12),\"\")","v":"CAPACIDADES COMERCIALES - SOCIOLOGÍA, MEDIOAMBIENTE Y DEMOGRAFÍA"}]
[null,null,null,{"$f":"1+D14","v":5},{"$f":"MATRIZ!E13","v":""},{"$f":"MATRIZ!J13","v":""},{"$f":"+IF(E15=\"\",IF(MATRIZ!F13=\"\",MATRIZ!I13,MATRIZ!F13), \"\") & \" - \" & IF(F15=\"\",IF(MATRIZ!K13=\"\",MATRIZ!N13,MATRIZ!K13),\"\")","v":"CAPACIDADES FINANCIERAS - ECONÓMICO Y FINANCIERO"}]
[null,null,null,{"$f":"1+D15","v":6},{"$f":"MATRIZ!E14","v":""},{"$f":"MATRIZ!J14","v":""},{"$f":"+IF(E16=\"\",IF(MATRIZ!F14=\"\",MATRIZ!I14,MATRIZ!F14), \"\") & \" - \" & IF(F16=\"\",IF(MATRIZ!K14=\"\",MATRIZ!N14,MATRIZ!K14),\"\")","v":"AMBIENTE EMPRENDEDOR - LEGAL Y ADMINISTRATIVO"}]

{"sheet":"EST.FA","index":7,"n_rows":16,"n_cols":9,"rows_kept":16,"cut":false,"hidden":false,"merged":[[2,3,2,7],[6,2,7,9],[4,2,4,3],[4,5,4,7]]}
[]
[]
[]
[]
[null,null,"EMPRESA",null,{"$f":"+Menu!C13","v":"GuiadelaCalidad"},null,null,null,{"$f":"+YEAR(Menu!D16) & \" - \" & YEAR(Menu!D17)","v":"2013 - 2013"}]
[]
[null,null,"GENERACIÓN DE ESTRATEGIAS FA"]
[]
[]
[null,null,null,"NUMERO","FORTALEZAS","AMENAZAS","NEUTROS-DEBILID/OPORT.","COMBINACION","ESTRATEGIA"]
[null,null,null,1,{"$f":"+MATRIZ!E9","v":""},{"$f":"+MATRIZ!K9","v":"INNOVACIÓN"},{"$f":"+IF(E11=\"\",IF(MATRIZ!F9=\"\",MATRIZ!I9,MATRIZ!F9), \"\") & \" - \" & IF(F11=\"\",IF(MATRIZ!J9=\"\",MATRIZ!N9,MATRIZ!J9),\"\")","v":"CAPACIDADES PERSONALES - "}]
[null,null,null,{"$f":"1+D11","v":2},{"$f":"+MATRIZ!E10","v":""},{"$f":"+MATRIZ!K10","v":"TECNOLOGÍA"},{"$f":"+IF(E12=\"\",IF(MATRIZ!F10=\"\",MATRIZ!I10,MATRIZ!F10), \"\") & \" - \" & IF(F12=\"\",IF(MATRIZ!J10=\"\",MATRIZ!N10,MATRIZ!J10),\"\")","v":"CAPACIDADES DE GESTIÓN - "}]
[null,null,null,{"$f":"1+D12","v":3},{"$f":"+MATRIZ!E11","v":""},{"$f":"+MATRIZ!K11","v":"MERCADO"},{"$f":"+IF(E13=\"\",IF(MATRIZ!F11=\"\",MATRIZ!I11,MATRIZ!F11), \"\") & \" - \" & IF(F13=\"\",IF(MATRIZ!J11=\"\",MATRIZ!N11,MATRIZ!J11),\"\")","v":"CAPACIDADES TÉCNICAS - "}]
[null,null,null,{"$f":"1+D13","v":4},{"$f":"+MATRIZ!E12","v":""},{"$f":"+MATRIZ!K12","v":"SOCIOLOGÍA, MEDIOAMBIENTE Y DEMOGRAFÍA"},{"$f":"+IF(E14=\"\",IF(MATRIZ!F12=\"\",MATRIZ!I12,MATRIZ!F12), \"\") & \" - \" & IF(F14=\"\",IF(MATRIZ!J12=\"\",MATRIZ!N12,MATRIZ!J12),\"\")","v":"CAPACIDADES COMERCIALES - "}]
[null,null,null,{"$f":"1+D14","v":5},{"$f":"+MATRIZ!E13","v":""},{"$f":"+MATRIZ!K13","v":"ECONÓMICO Y FINANCIERO"},{"$f":"+IF(E15=\"\",IF(MATRIZ!F13=\"\",MATRIZ!I13,MATRIZ!F13), \"\") & \" - \" & IF(F15=\"\",IF(MATRIZ!J13=\"\",MATRIZ!N13,MATRIZ!J13),\"\")","v":"CAPACIDADES FINANCIERAS - "}]
[null,null,null,{"$f":"1+D15","v":6},{"$f":"+MATRIZ!E14","v":""},{"$f":"+MATRIZ!K14","v":"LEGAL Y ADMINISTRATIVO"},{"$f":"+IF(E16=\"\",IF(MATRIZ!F14=\"\",MATRIZ!I14,MATRIZ!F14), \"\") & \" - \" & IF(F16=\"\",IF(MATRIZ!J14=\"\",MATRIZ!N14,MATRIZ!J14),\"\")","v":"AMBIENTE EMPRENDEDOR - "}]

{"sheet":"EST.DO","index":8,"n_rows":16,"n_cols":9,"rows_kept":16,"cut":false,"hidden":false,"merged":[[6,2,7,9],[4,2,4,3],[2,3,2,7],[4,5,4,7]]}
[]
[]
[]
[]
[null,null,"EMPRESA",null,{"$f":"+Menu!C13","v":"GuiadelaCalidad"},null,null,null,{"$f":"+YEAR(Menu!D16) & \" - \" & YEAR(Menu!D17)","v":"2013 - 2013"}]
[]
[null,null,"GENERACIÓN DE ESTRATEGIAS DO"]
[]
[]
[null,null,null,"NUMERO","DEBILIDADES","OPORTUNIDADES","NEUTROS-FORT./AMENAZ.","COMBINACION","ESTRATEGIA"]
[null,null,null,1,{"$f":"+MATRIZ!F9","v":"CAPACIDADES PERSONALES"},{"$f":"+MATRIZ!J9","v":""},{"$f":"+IF(E11=\"\",IF(MATRIZ!E9=\"\",MATRIZ!I9,MATRIZ!E9),\"\") & \" - \" & IF(F11=\"\",IF(MATRIZ!K9=\"\",MATRIZ!N9,MATRIZ!K9),\"\")","v":" - INNOVACIÓN"}]
[null,null,null,{"$f":"1+D11","v":2},{"$f":"+MATRIZ!F10","v":"CAPACIDADES DE GESTIÓN"},{"$f":"+MATRIZ!J10","v":""},{"$f":"+IF(E12=\"\",IF(MATRIZ!E10=\"\",MATRIZ!I10,MATRIZ!E10),\"\") & \" - \" & IF(F12=\"\",IF(MATRIZ!K10=\"\",MATRIZ!N10,MATRIZ!K10),\"\")","v":" - TECNOLOGÍA"}]
[null,null,null,{"$f":"1+D12","v":3},{"$f":"+MATRIZ!F11","v":"CAPACIDADES TÉCNICAS"},{"$f":"+MATRIZ!J11","v":""},{"$f":"+IF(E13=\"\",IF(MATRIZ!E11=\"\",MATRIZ!I11,MATRIZ!E11),\"\") & \" - \" & IF(F13=\"\",IF(MATRIZ!K11=\"\",MATRIZ!N11,MATRIZ!K11),\"\")","v":" - MERCADO"}]
[null,null,null,{"$f":"1+D13","v":4},{"$f":"+MATRIZ!F12","v":"CAPACIDADES COMERCIALES"},{"$f":"+MATRIZ!J12","v":""},{"$f":"+IF(E14=\"\",IF(MATRIZ!E12=\"\",MATRIZ!I12,MATRIZ!E12),\"\") & \" - \" & IF(F14=\"\",IF(MATRIZ!K12=\"\",MATRIZ!N12,MATRIZ!K12),\"\")","v":" - SOCIOLOGÍA, MEDIOAMBIENTE Y DEMOGRAFÍA"}]
[null,null,null,{"$f":"1+D14","v":5},{"$f":"+MATRIZ!F13","v":"CAPACIDADES FINANCIERAS"},{"$f":"+MATRIZ!J13","v":""},{"$f":"+IF(E15=\"\",IF(MATRIZ!E13=\"\",MATRIZ!I13,MATRIZ!E13),\"\") & \" - \" & IF(F15=\"\",IF(MATRIZ!K13=\"\",MATRIZ!N13,MATRIZ!K13),\"\")","v":" - ECONÓMICO Y FINANCIERO"}]
[null,null,null,{"$f":"1+D15","v":6},{"$f":"+MATRIZ!F14","v":"AMBIENTE EMPRENDEDOR"},{"$f":"+MATRIZ!J14","v":""},{"$f":"+IF(E16=\"\",IF(MATRIZ!E14=\"\",MATRIZ!I14,MATRIZ!E14),\"\") & \" - \" & IF(F16=\"\",IF(MATRIZ!K14=\"\",MATRIZ!N14,MATRIZ!K14),\"\")","v":" - LEGAL Y ADMINISTRATIVO"}]

{"sheet":"EST.DA","index":9,"n_rows":16,"n_cols":9,"rows_kept":16,"cut":false,"hidden":false,"merged":[[6,2,7,9],[4,2,4,3],[2,3,2,7],[4,5,4,7]]}
[]
[]
[]
[]
[null,null,"EMPRESA",null,{"$f":"+Menu!C13","v":"GuiadelaCalidad"},null,null,null,{"$f":"+YEAR(Menu!D16) & \" - \" & YEAR(Menu!D17)","v":"2013 - 2013"}]
[]
[null,null,"GENERACIÓN DE ESTRATEGIAS DA"]
[]
[]
[null,null,null,"NUMERO","DEBILIDADES","AMENAZAS","NEUTROS-FORT./OPORT.","COMBINACION","ESTRATEGIA"]
[null,null,null,1,{"$f":"+MATRIZ!F9","v":"CAPACIDADES PERSONALES"},{"$f":"+MATRIZ!K9","v":"INNOVACIÓN"},{"$f":"+IF(E11=\"\",IF(MATRIZ!E9=\"\",MATRIZ!I9,MATRIZ!E9),\"\") & \" - \" & IF(F11=\"\",IF(MATRIZ!J9=\"\",MATRIZ!N9,MATRIZ!J9),\"\")","v":" - "}]
[null,null,null,{"$f":"1+D11","v":2},{"$f":"+MATRIZ!F10","v":"CAPACIDADES DE GESTIÓN"},{"$f":"+MATRIZ!K10","v":"TECNOLOGÍA"},{"$f":"+IF(E12=\"\",IF(MATRIZ!E10=\"\",MATRIZ!I10,MATRIZ!E10),\"\") & \" - \" & IF(F12=\"\",IF(MATRIZ!J10=\"\",MATRIZ!N10,MATRIZ!J10),\"\")","v":" - "}]
[null,null,null,{"$f":"1+D12","v":3},{"$f":"+MATRIZ!F11","v":"CAPACIDADES TÉCNICAS"},{"$f":"+MATRIZ!K11","v":"MERCADO"},{"$f":"+IF(E13=\"\",IF(MATRIZ!E11=\"\",MATRIZ!I11,MATRIZ!E11),\"\") & \" - \" & IF(F13=\"\",IF(MATRIZ!J11=\"\",MATRIZ!N11,MATRIZ!J11),\"\")","v":" - "}]
[null,null,null,{"$f":"1+D13","v":4},{"$f":"+MATRIZ!F12","v":"CAPACIDADES COMERCIALES"},{"$f":"+MATRIZ!K12","v":"SOCIOLOGÍA, MEDIOAMBIENTE Y DEMOGRAFÍA"},{"$f":"+IF(E14=\"\",IF(MATRIZ!E12=\"\",MATRIZ!I12,MATRIZ!E12),\"\") & \" - \" & IF(F14=\"\",IF(MATRIZ!J12=\"\",MATRIZ!N12,MATRIZ!J12),\"\")","v":" - "}]
[null,null,null,{"$f":"1+D14","v":5},{"$f":"+MATRIZ!F13","v":"CAPACIDADES FINANCIERAS"},{"$f":"+MATRIZ!K13","v":"ECONÓMICO Y FINANCIERO"},{"$f":"+IF(E15=\"\",IF(MATRIZ!E13=\"\",MATRIZ!I13,MATRIZ!E13),\"\") & \" - \" & IF(F15=\"\",IF(MATRIZ!J13=\"\",MATRIZ!N13,MATRIZ!J13),\"\")","v":" - "}]
[null,null,null,{"$f":"1+D15","v":6},{"$f":"+MATRIZ!F14","v":"AMBIENTE EMPRENDEDOR"},{"$f":"+MATRIZ!K14","v":"LEGAL Y ADMINISTRATIVO"},{"$f":"+IF(E16=\"\",IF(MATRIZ!E14=\"\",MATRIZ!I14,MATRIZ!E14),\"\") & \" - \" & IF(F16=\"\",IF(MATRIZ!J14=\"\",MATRIZ!N14,MATRIZ!J14),\"\")","v":" - "}]

{"sheet":"ESTRATEGIAS","index":10,"n_rows":16,"n_cols":8,"rows_kept":16,"cut":false,"hidden":false,"merged":[[6,2,8,8],[2,3,2,7],[4,2,4,3],[4,5,4,6]]}
[]
[]
[]
[]
[null,null,"EMPRESA",null,{"$f":"+Menu!C13","v":"GuiadelaCalidad"},null,null,{"$f":"+YEAR(Menu!D16) & \" - \" & YEAR(Menu!D17)","v":"2013 - 2013"}]
[]
[null,null,"ESTRATEGIAS PROPUESTAS"]
[]
[]
[null,null,null,"NUMERO","ESTRATEGIAS FO","ESTRATEGIAS FA","ESTRATEGIAS DO","ESTRATEGIAS DA"]
[null,null,null,1,{"$f":"+EST.FO!I11","v":0},{"$f":"+EST.FA!I11","v":0},{"$f":"+EST.DO!I11","v":0},{"$f":"+EST.DA!I11","v":0}]
[null,null,null,{"$f":"1+D11","v":2},{"$f":"+EST.FO!I12","v":0},{"$f":"+EST.FA!I12","v":0},{"$f":"+EST.DO!I12","v":0},{"$f":"+EST.DA!I12","v":0}]
[null,null,null,{"$f":"1+D12","v":3},{"$f":"+EST.FO!I13","v":0},{"$f":"+EST.FA!I13","v":0},{"$f":"+EST.DO!I13","v":0},{"$f":"+EST.DA!I13","v":0}]
[null,null,null,{"$f":"1+D13","v":4},{"$f":"+EST.FO!I14","v":0},{"$f":"+EST.FA!I14","v":0},{"$f":"+EST.DO!I14","v":0},{"$f":"+EST.DA!I14","v":0}]
[null,null,null,{"$f":"1+D14","v":5},{"$f":"+EST.FO!I15","v":0},{"$f":"+EST.FA!I15","v":0},{"$f":"+EST.DO!I15","v":0},{"$f":"+EST.DA!I15","v":0}]
[null,null,null,{"$f":"1+D15","v":6},{"$f":"+EST.FO!I16","v":0},{"$f":"+EST.FA!I16","v":0},{"$f":"+EST.DO!I16","v":0},{"$f":"+EST.DA!I16","v":0}]

{"sheet":"SELECCION","index":11,"n_rows":41,"n_cols":13,"rows_kept":41,"cut":false,"hidden":false,"merged":[[9,3,9,4],[6,2,8,12],[1,4,1,8],[4,6,4,9],[4,10,4,11],[4,2,4,3],[4,4,4,5]]}
[]
[]
[]
[]
[null,null,"EMPRESA",null,{"$f":"+Menu!C13","v":"GuiadelaCalidad"},null,null,null,null,null,{"$f":"+YEAR(Menu!D16) & \" - \" & YEAR(Menu!D17)","v":"2013 - 2013"}]
[]
[null,null,"SELECCIÓN DE LAS MEJORES ESTRATEGIAS"]
[]
[]
[null,null,null,null,null,"CALIFICACION  DE 1 A 5 ( si no son 5 los integrantes coloque n en las demas casillas)",null,null,null,null," ","ESTRATEGIAS "]
[null,null,null,"NUMERO","ESTRATEGIAS FO","CALIFICADOR 1","CALIFICADOR 2","CALIFICADOR 3","CALIFICADOR 4","CALIFICADOR 5","PROMEDIO","SELECCIONADA   "," "]
[null,null,null,1,{"$f":"+ESTRATEGIAS!E11","v":0},6,6,6,1,1,{"$f":"AVERAGE(F12:J12)","v":4},{"$f":"IF(K12>=4,$E12,\"\")","v":0}," "]
[null,null,null,2,{"$f":"+ESTRATEGIAS!E12","v":0},1,1,1,1,1,1,{"$f":"IF(K13>=4,$E13,\"\")","v":""}]
[null,null,null,3,{"$f":"+ESTRATEGIAS!E13","v":0},1,1,1,1,1,1,{"$f":"IF(K14>=4,$E14,\"\")","v":""}]
[null,null,null,4,{"$f":"+ESTRATEGIAS!E14","v":0},1,1,1,1,1,1,{"$f":"IF(K15>=4,$E15,\"\")","v":""}]
[null,null,null,5,{"$f":"+ESTRATEGIAS!E15","v":0},1,1,1,1,1,1,{"$f":"IF(K16>=4,$E16,\"\")","v":""}]
[null,null,null,6,{"$f":"+ESTRATEGIAS!E16","v":0},1,1,1,1,1,1,{"$f":"IF(K17>=4,$E17,$M$11)","v":" "}]
[null,null,null,null,null," "," "," "," "," "," "]
[null,null,null,"NUMERO","ESTRATEGIAS FA","CALIFICADOR 1","CALIFICADOR 2","CALIFICADOR 3","CALIFICADOR 4","CALIFICADOR 5","PROMEDIO","SELECCIONADA   "," "]
[null,null,null,1,{"$f":"+ESTRATEGIAS!F11","v":0},1,1,1,1,1,{"$f":"AVERAGE(F20:J20)","v":1},{"$f":"IF(K20>=4,$E20,\"\")","v":""}]
[null,null,null,2,{"$f":"+ESTRATEGIAS!F12","v":0},6,6,6,1,1,4,0]
[null,null,null,3,{"$f":"+ESTRATEGIAS!F13","v":0},1,1,1,1,1,1,""]
[null,null,null,4,{"$f":"+ESTRATEGIAS!F14","v":0},1,1,1,1,1,1,""]
[null,null,null,5,{"$f":"+ESTRATEGIAS!F15","v":0},1,1,1,1,1,1,""]
[null,null,null,6,{"$f":"+ESTRATEGIAS!F16","v":0},1,1,1,1,1,1,""]
[null,null,null,null,null," "," "," "," "," "," "]
[null,null,null,"NUMERO","ESTRATEGIAS DO","CALIFICADOR 1","CALIFICADOR 2","CALIFICADOR 3","CALIFICADOR 4","CALIFICADOR 5","PROMEDIO","SELECCIONADA   "," "]
[null,null,null,1,{"$f":"+ESTRATEGIAS!G11","v":0},6,1,6,6,1,{"$f":"AVERAGE(F28:J28)","v":4},{"$f":"IF(K28>=4,$E28,\"\")","v":0}]
[null,null,null,2,{"$f":"+ESTRATEGIAS!G12","v":0},1,1,1,1,1,1,""]
[null,null,null,3,{"$f":"+ESTRATEGIAS!G13","v":0},1,1,1,1,1,1,""]
[null,null,null,4,{"$f":"+ESTRATEGIAS!G14","v":0},1,1,1,1,1,1,""]
[null,null,null,5,{"$f":"+ESTRATEGIAS!G15","v":0},1,1,1,1,1,1,""]
[null,null,null,6,{"$f":"+ESTRATEGIAS!G16","v":0},1,1,1,1,1,1,""]
[null,null,null,null,null," "," "," "," "," "," "]
[null,null,null,"NUMERO","ESTRATEGIAS DA","CALIFICADOR 1","CALIFICADOR 2","CALIFICADOR 3","CALIFICADOR 4","CALIFICADOR 5","PROMEDIO","SELECCIONADA    "," "]
[null,null,null,1,{"$f":"+ESTRATEGIAS!H11","v":0},1,1,1,1,1,{"$f":"AVERAGE(F36:J36)","v":1},{"$f":"IF(K36>=4,$E36,\"\")","v":""}]
[null,null,null,2,{"$f":"+ESTRATEGIAS!H12","v":0},1,1,1,1,1,1,""]
[null,null,null,3,{"$f":"+ESTRATEGIAS!H13","v":0},6,6,6,1,1,4,0]
[null,null,null,4,{"$f":"+ESTRATEGIAS!H14","v":0},1,1,1,1,1,1,""]
[null,null,null,5,{"$f":"+ESTRATEGIAS!H15","v":0},1,1,1,1,1,1,""]
[null,null,null,6,{"$f":"+ESTRATEGIAS!H16","v":0},1,1,1,1,1,1,""]

{"sheet":"MATRIZ FINAL","index":12,"n_rows":36,"n_cols":8,"rows_kept":36,"cut":false,"hidden":false,"merged":[[4,2,4,3],[1,5,1,11],[4,5,4,6],[35,7,38,7],[35,5,38,6],[9,5,13,6],[9,7,13,7]]}
[]
[]
[]
[]
[null,null,"EMPRESA",null,{"$f":"+Menu!C13","v":"GuiadelaCalidad"},null,null,{"$f":"+YEAR(Menu!D16) & \" - \" & YEAR(Menu!D17)","v":"2013 - 2013"}]
[]
[]
[]
[]
[null,null,null,null,null,"Uso de Fortalezas para aprovechar Oportunidades",null,"Vencer Debilidades aprovechando Oportunidades"]
[]
[]
[]
[]
[null,null,null,null,null,null,"FORTALEZAS","DEBILIDADES"]
[null,null,null,null,null,1,{"$f":"IF(MATRIZ!E9=\"\",IF(MATRIZ!F9=\"\",\"NEUTRO - \" & MATRIZ!I9,\"\"),MATRIZ!E9)","v":""},{"$f":"IF(MATRIZ!F9=\"\",IF(MATRIZ!E9=\"\",\"NEUTRO - \"&MATRIZ!I9,\"\"),MATRIZ!F9)","v":"CAPACIDADES PERSONALES"}]
[null,null,null,null,null,2,{"$f":"IF(MATRIZ!E10=\"\",IF(MATRIZ!F10=\"\",\"NEUTRO - \" & MATRIZ!I10,\"\"),MATRIZ!E10)","v":""},{"$f":"IF(MATRIZ!F10=\"\",IF(MATRIZ!E10=\"\",\"NEUTRO - \"&MATRIZ!I10,\"\"),MATRIZ!F10)","v":"CAPACIDADES DE GESTIÓN"}]
[null,null,null,null,null,3,{"$f":"IF(MATRIZ!E11=\"\",IF(MATRIZ!F11=\"\",\"NEUTRO - \" & MATRIZ!I11,\"\"),MATRIZ!E11)","v":""},{"$f":"IF(MATRIZ!F11=\"\",IF(MATRIZ!E11=\"\",\"NEUTRO - \"&MATRIZ!I11,\"\"),MATRIZ!F11)","v":"CAPACIDADES TÉCNICAS"}]
[null,null,null,null,null,4,{"$f":"IF(MATRIZ!E12=\"\",IF(MATRIZ!F12=\"\",\"NEUTRO - \" & MATRIZ!I12,\"\"),MATRIZ!E12)","v":""},{"$f":"IF(MATRIZ!F12=\"\",IF(MATRIZ!E12=\"\",\"NEUTRO - \"&MATRIZ!I12,\"\"),MATRIZ!F12)","v":"CAPACIDADES COMERCIALES"}]
[null,null,null,null,null,5,{"$f":"IF(MATRIZ!E13=\"\",IF(MATRIZ!F13=\"\",\"NEUTRO - \" & MATRIZ!I13,\"\"),MATRIZ!E13)","v":""},{"$f":"IF(MATRIZ!F13=\"\",IF(MATRIZ!E13=\"\",\"NEUTRO - \"&MATRIZ!I13,\"\"),MATRIZ!F13)","v":"CAPACIDADES FINANCIERAS"}]
[null,null,null,null,null,6,{"$f":"IF(MATRIZ!E14=\"\",IF(MATRIZ!F14=\"\",\"NEUTRO - \" & MATRIZ!I14,\"\"),MATRIZ!E14)","v":""},{"$f":"IF(MATRIZ!F14=\"\",IF(MATRIZ!E14=\"\",\"NEUTRO - \"&MATRIZ!I14,\"\"),MATRIZ!F14)","v":"AMBIENTE EMPRENDEDOR"}]
[null,null,null,null,"OPORTUNIDADES",null,"ESTRATEGIAS (FO)","ESTRATEGIAS (DO)"]
[null,null,null,1,{"$f":"IF(MATRIZ!J9=\"\",IF(MATRIZ!K9=\"\",\"NEUTRO - \"&MATRIZ!N9,\"\"),MATRIZ!J9)","v":""},1,{"$f":"+SELECCION!L12","v":0},{"$f":"+SELECCION!L28","v":0}]
[null,null,null,2,{"$f":"IF(MATRIZ!J10=\"\",IF(MATRIZ!K10=\"\",\"NEUTRO - \"&MATRIZ!N10,\"\"),MATRIZ!J10)","v":""},2,{"$f":"+SELECCION!L13","v":""},{"$f":"+SELECCION!L29","v":""}]
[null,null,null,3,{"$f":"IF(MATRIZ!J11=\"\",IF(MATRIZ!K11=\"\",\"NEUTRO - \"&MATRIZ!N11,\"\"),MATRIZ!J11)","v":""},3,{"$f":"+SELECCION!L14","v":""},{"$f":"+SELECCION!L30","v":""}]
[null,null,null,4,{"$f":"IF(MATRIZ!J12=\"\",IF(MATRIZ!K12=\"\",\"NEUTRO - \"&MATRIZ!N12,\"\"),MATRIZ!J12)","v":""},4,{"$f":"+SELECCION!L15","v":""},{"$f":"+SELECCION!L31","v":""}]
[null,null,null,5,{"$f":"IF(MATRIZ!J13=\"\",IF(MATRIZ!K13=\"\",\"NEUTRO - \"&MATRIZ!N13,\"\"),MATRIZ!J13)","v":""},5,{"$f":"+SELECCION!L16","v":""},{"$f":"+SELECCION!L32","v":""}]
[null,null,null,6,{"$f":"IF(MATRIZ!J14=\"\",IF(MATRIZ!K14=\"\",\"NEUTRO - \"&MATRIZ!N14,\"\"),MATRIZ!J14)","v":""},6,{"$f":"+SELECCION!L17","v":" "},{"$f":"+SELECCION!L33","v":""}]
[null,null,null,null,"AMENAZAS",null,"ESTRATEGIAS (FA)","ESTRATEGIAS (DA)"]
[null,null,null,1,{"$f":"IF(MATRIZ!K9=\"\",IF(MATRIZ!J9=\"\",\"NEUTRO - \" & MATRIZ!N9,\"\"),MATRIZ!K9)","v":"INNOVACIÓN"},1,{"$f":"+SELECCION!L20","v":""},{"$f":"+SELECCION!L36","v":""}]
[null,null,null,2,{"$f":"IF(MATRIZ!K10=\"\",IF(MATRIZ!J10=\"\",\"NEUTRO - \" & MATRIZ!N10,\"\"),MATRIZ!JK0)","v":{"$error":"#NAME?"}},2,{"$f":"+SELECCION!L21","v":0},{"$f":"+SELECCION!L37","v":""}]
[null,null,null,3,{"$f":"IF(MATRIZ!K11=\"\",IF(MATRIZ!J11=\"\",\"NEUTRO - \" & MATRIZ!N11,\"\"),MATRIZ!K11)","v":"MERCADO"},3,{"$f":"+SELECCION!L22","v":""},{"$f":"+SELECCION!L38","v":0}]
[null,null,null,4,{"$f":"IF(MATRIZ!K12=\"\",IF(MATRIZ!J12=\"\",\"NEUTRO - \" & MATRIZ!N12,\"\"),MATRIZ!K12)","v":"SOCIOLOGÍA, MEDIOAMBIENTE Y DEMOGRAFÍA"},4,{"$f":"+SELECCION!L23","v":""},{"$f":"+SELECCION!L39","v":""}]
[null,null,null,5,{"$f":"IF(MATRIZ!K13=\"\",IF(MATRIZ!J13=\"\",\"NEUTRO - \" & MATRIZ!N13,\"\"),MATRIZ!K13)","v":"ECONÓMICO Y FINANCIERO"},5,{"$f":"+SELECCION!L24","v":""},{"$f":"+SELECCION!L40","v":""}]
[null,null,null,6,{"$f":"IF(MATRIZ!K14=\"\",IF(MATRIZ!J14=\"\",\"NEUTRO - \" & MATRIZ!N14,\"\"),MATRIZ!K14)","v":"LEGAL Y ADMINISTRATIVO"},6,{"$f":"+SELECCION!L25","v":""},{"$f":"+SELECCION!L41","v":""}]
[null,null,null,null,null,"Uso de Fortalezas para evitar Amenazas",null,"Reducir al mínimo las Debilidades y evitar Amenzas"]

{"sheet":"DECISION","index":13,"n_rows":37,"n_cols":6,"rows_kept":37,"cut":false,"hidden":false,"merged":[[1,4,1,8],[8,3,8,5],[4,2,4,3],[6,2,7,6]]}
[]
[]
[]
[]
[null,null,"EMPRESA",null,{"$f":"+Menu!C13","v":"GuiadelaCalidad"},{"$f":"+YEAR(Menu!D16) & \" - \" & YEAR(Menu!D17)","v":"2013 - 2013"}]
[]
[null,null,"SELECCIÓN DE LAS MEJORES ESTRATEGIAS"]
[]
[null,null,null,"EXPLICACION BREVE DE LAS MEJORES ESTRATEGICAS SELECCIONADAS"]
[null,null,null,null,"ESTRATEGIAS FO","                                    EXPLICACION                                        (Ctrl A para autoajustar el alto de las filas)"]
[null,null,null,1,{"$f":"+'MATRIZ FINAL'!G23","v":0}]
[null,null,null,2,{"$f":"+'MATRIZ FINAL'!G24","v":""}]
[null,null,null,3,{"$f":"+'MATRIZ FINAL'!G25","v":""}]
[null,null,null,4,{"$f":"+'MATRIZ FINAL'!G26","v":""}]
[null,null,null,5,{"$f":"+'MATRIZ FINAL'!G27","v":""}]
[null,null,null,6,{"$f":"+'MATRIZ FINAL'!G28","v":" "}]
[null,null,null," ","ESTRATEGIAS FA","EXPLICACION"]
[null,null,null,1,{"$f":"+'MATRIZ FINAL'!G30","v":""}]
[null,null,null,2,{"$f":"+'MATRIZ FINAL'!G31","v":0}]
[null,null,null,3,{"$f":"+'MATRIZ FINAL'!G32","v":""}]
[null,null,null,4,{"$f":"+'MATRIZ FINAL'!G33","v":""}]
[null,null,null,5,{"$f":"+'MATRIZ FINAL'!G34","v":""}]
[null,null,null,6,{"$f":"+'MATRIZ FINAL'!G35","v":""}]
[null,null,null,null,"ESTRATEGIAS DO","EXPLICACION"]
[null,null,null,1,{"$f":"+'MATRIZ FINAL'!H23","v":0}]
[null,null,null,2,{"$f":"+'MATRIZ FINAL'!H24","v":""}]
[null,null,null,3,{"$f":"+'MATRIZ FINAL'!H25","v":""}]
[null,null,null,4,{"$f":"+'MATRIZ FINAL'!H26","v":""}]
[null,null,null,5,{"$f":"+'MATRIZ FINAL'!H27","v":""}]
[null,null,null,6,{"$f":"+'MATRIZ FINAL'!H28","v":""}]
[null,null,null,null,"ESTRATEGIAS DA","EXPLICACION"]
[null,null,null,1,{"$f":"+'MATRIZ FINAL'!H30","v":""}]
[null,null,null,2,{"$f":"+'MATRIZ FINAL'!H31","v":""}]
[null,null,null,3,{"$f":"+'MATRIZ FINAL'!H32","v":0}]
[null,null,null,4,{"$f":"+'MATRIZ FINAL'!H33","v":""}]
[null,null,null,5,{"$f":"+'MATRIZ FINAL'!H34","v":""}]
[null,null,null,6,{"$f":"+'MATRIZ FINAL'!H35","v":""}]